Cogmind - Beta 10.1 @@@ ROGUE MODE // 2020.11.03 @ 21:51:09 Player: Demise Result: Destroyed by Enhanced Grunt with Neutron Cannon Performance ------------- Evolutions (3) 1500 Regions Visited (12) 2400 Robots Destroyed (144) 720 Value Destroyed (3547) 3547 Prototype IDs (217) 4340 Alien Tech Used (0) 0 Bonus (940) 940 TOTAL SCORE: 13447 Bonus ------- High Alert Combat Kills 309 Follower Combat Kills 662 Met Data Miner 300 Used Data Conduit 3000 Friendly Fire -3331 Cogmind --------- Core Integrity 0/700 Matter 300/300 Energy 100/100 System Corruption 4% Temperature Cool (6) Movement Core (50) Location -7/Data Miner Parts ------- > --- POWER (1) -------- (None) > --- PROPULSION (4) --- (None) > --- UTILITY (6) ------ Improved Heat Sink Visual Processing Unit Hacking Suite System Shield > --- WEAPON (2) ------- (None) > --- INVENTORY (4) ---- Micro Nuclear Core Small Storage Unit Missile Launcher Remote Datajack Peak State ------------ > --- POWER ------------ Antimatter Reactor > --- PROPULSION ------- Improved Flight Unit Improved Flight Unit Cesium-ion Thruster Cesium-ion Thruster > --- UTILITY ---------- Visual Processing Unit Long-range Sensor Array Improved Propulsion Shielding Utility Shielding Hacking Suite System Shield > --- WEAPON ----------- Remote Datajack Spear > --- INVENTORY -------- Cesium-ion Thruster High-capacity Storage Unit Gauss Rifle Missile Launcher [Rating: 44] Favorites ----------- Power Antimatter Reactor Engine Ion Engine Power Core Micro Nuclear Core Reactor Antimatter Reactor Propulsion Light Treads Treads Light Treads Leg Aluminum Leg Wheel Compact Wheel Hover Unit Gravmag System Flight Unit Improved Flight Unit Utility Large Storage Unit Device Improved Heat Sink Storage Large Storage Unit Processor Armor Integrity Analyzer Hackware Hacking Suite Protection Improved Propulsion Shielding Weapon Improved Light Cannon Energy Gun Medium Laser Ballistic Gun Assault Rifle Ballistic Cannon Improved Light Cannon Launcher Rocket Launcher Special Weapon Mining Laser Impact Weapon Great Maul Piercing Weapon Spear Special Melee Weapon Datajack Build | -11 -10 -10 -10 -9 -8 -8 -7 -7 -7 -7 -7 -7 ------- Run | Scr Mat Min Exi Min Mat Sto Fac Was Fac Low Low Dat Slots Evolved 6 | . . . . . 4 . 2 . . . . . Power . | . . . . . . . . . . . . . Propulsion 2 | . . . . . . . 2 . . . . . Utility 4 | . . . . . 4 . . . . . . . Weapon . | . . . . . . . . . . . . . Parts Attached 156 | 1 24 2 3 3 22 43 . 36 20 2 . . Power 15 | . 4 . . . 1 4 . 3 3 . . . Engine 10 | . 4 . . . 1 4 . 1 . . . . Core 1 | . . . . . . . . . 1 . . . Reactor 4 | . . . . . . . . 2 2 . . . Propulsion 44 | . 7 1 . . 5 11 . 12 7 1 . . Treads 19 | . 4 1 . . 3 9 . 2 . . . . Leg . | . . . . . . . . . . . . . Wheel 6 | . 3 . . . 2 1 . . . . . . Hover 1 | . . . . . . . . . . 1 . . Flight 18 | . . . . . . 1 . 10 7 . . . Utility 40 | . 3 . 3 . 9 10 . 9 5 1 . . Device 8 | . . . . . 1 2 . 3 1 1 . . Storage 12 | . 3 . 3 . 3 1 . 1 1 . . . Processor 5 | . . . . . 3 1 . . 1 . . . Hackware 4 | . . . . . . 1 . 2 1 . . . Protection 11 | . . . . . 2 5 . 3 1 . . . Artifact . | . . . . . . . . . . . . . Weapon 57 | 1 10 1 . 3 7 18 . 12 5 . . . Energy Gun 7 | 1 1 . . . . 4 . 1 . . . . Energy Cannon . | . . . . . . . . . . . . . Ballistic Gun 24 | . 8 . . 2 4 5 . 4 1 . . . Ballistic Cannon 10 | . . . . . 2 6 . 2 . . . . Launcher 6 | . . . . . 1 2 . 3 . . . . Special Weapon 4 | . 1 1 . 1 . . . . 1 . . . Impact Weapon 4 | . . . . . . 1 . 1 2 . . . Slashing Weapon . | . . . . . . . . . . . . . Piercing Weapon 1 | . . . . . . . . . 1 . . . Special Melee Weapon 1 | . . . . . . . . 1 . . . . Unidentified Prototypes 8 | . . . . . . 7 . . 1 . . . Parts Lost 36 | . 6 . . . 8 1 . 8 7 3 . 3 Power 4 | . 2 . . . 1 . . . . 1 . . Propulsion 11 | . 2 . . . 3 1 . 1 1 2 . 1 Utility 11 | . . . . . 1 . . 4 5 . . 1 Weapon 10 | . 2 . . . 3 . . 3 1 . . 1 Highest Loss Streak 7 | . 2 . . . 3 1 . 7 2 3 . 3 Average Slot Usage (%) 68 | . 96 100 92 85 82 98 84 28 86 77 61 56 Engine 5 | . 13 14 14 14 6 8 7 . . . . . Reactor 2 | . . . . . . . . 6 6 5 . . Treads 10 | . 17 26 28 28 14 16 15 . . . . . Wheel 1 | . 8 1 . . 2 . . . . . . . Flight 2 | . . . . . . . . 1 29 19 7 6 Device 1 | . . . . . . 1 . . 9 5 7 7 Storage 15 | . 26 28 20 14 13 26 23 6 1 7 7 5 Processor 6 | . . . . . 21 18 15 . 5 7 7 7 Hackware 1 | . . . . . . . . . 12 15 15 15 Protection 5 | . . . . . 6 8 7 6 9 7 7 6 Energy Gun 1 | . 12 . . . . . 7 . . . . . Ballistic Gun 7 | . 15 26 14 25 10 2 7 1 1 . . . Ballistic Cannon 3 | . . . . . 7 14 . 1 . . . . Naked Turns 4 | . . . . . . . . 4 . . . . Heaviest Build 123 | 11 59 57 88 89 123 89 88 112 25 24 8 8 Greatest Support 40 | 20 40 40 40 40 40 40 40 40 26 19 6 6 Greatest Overweight (x) 37 | . 5 5 2 2 28 8 2 37 2 2 1 1 Average Overweight (x) 2 | . 2 1 1 2 2 2 2 12 . 1 1 . Largest Inventory Capacity 30 | 6 18 18 24 24 30 24 24 24 6 6 6 6 Average Capacity 20 | 6 15 18 21 24 24 23 24 22 4 6 6 5 Most Carried 24 | 6 18 18 23 24 24 24 24 24 6 6 6 6 Average Carried 14 | 6 12 17 19 23 20 23 24 9 4 6 6 5 Final Capacity 24 | 6 18 18 24 24 18 24 24 4 6 6 6 4 Final Carried 24 | 6 17 18 23 24 17 24 24 4 6 6 6 4 Class Distribution -------------------- 66% | Hauler-Mutant 23% | Mutant 4% | Hacker-Mutant Dominant Class ---------------- Mutant | -10/Materials Mutant | -10/Mines Hauler-Mutant | -10/Exiles Hauler-Mutant | -9/Mines Hauler-Mutant | -8/Materials Hauler-Mutant | -8/Storage Hauler-Mutant | -7/Factory Hauler-Mutant | -7/Waste Hacker-Sprinter | -7/Factory Hacker-Mutant | -7/Lower Caves Hacker-Mutant | -7/Lower Caves Hacker-Mutant | -7/Data Miner Resources | -11 -10 -10 -10 -9 -8 -8 -7 -7 -7 -7 -7 -7 ----------- Run | Scr Mat Min Exi Min Mat Sto Fac Was Fac Low Low Dat Matter Collected 4398 | 210 563 136 40 30 765 1433 . 1017 166 38 . . Remotely . | . . . . . . . . . . . . . Salvage Created 5066 | 141 1061 228 . 44 851 1555 . 969 150 67 . . Parts 256 | 9 57 8 . 7 42 82 . 43 5 3 . . Haulers Intercepted 8 | . 2 . . . . 5 . . 1 . . . Recyclers Shooed 2 | . 1 . . . 1 . . . . . . . Parts Field Recycled . | . . . . . . . . . . . . . Retrieved Matter . | . . . . . . . . . . . . . Parts Self-Destructed 3 | . . . . . . . . . . 3 . . Prevented . | . . . . . . . . . . . . . Kills | -11 -10 -10 -10 -9 -8 -8 -7 -7 -7 -7 -7 -7 ------- Run | Scr Mat Min Exi Min Mat Sto Fac Was Fac Low Low Dat Combat Hostiles Destroyed 89 | . 23 7 . 3 17 37 . 1 . 1 . . Melee 1 | . . . . . . . . . . 1 . . Guns 57 | . 22 7 . 3 17 8 . . . . . . Cannons 29 | . . . . . . 29 . . . . . . AOE 1 | . . . . . . . . 1 . . . . Classes Destroyed 17 | 2 6 . . . 2 3 . 3 . 1 . . Worker 3 | . . . . . 2 1 . . . . . . Builder 3 | . 1 . . . . . . . 2 . . . Tunneler 5 | 5 . . . . . . . . . . . . Hauler 8 | . 2 . . . . 5 . . 1 . . . Recycler 4 | 1 1 . . . 1 1 . . . . . . Operator 5 | . 2 . . . . 3 . . . . . . Watcher 7 | . 3 . . . . 2 . . 2 . . . Swarmer 20 | . 6 3 . 3 . 8 . . . . . . Grunt 53 | . 17 4 . . 15 17 . . . . . . Brawler 1 | . . . . . . 1 . . . . . . Protector 1 | . . . . . . 1 . . . . . . Sentry 12 | . . . . . 2 10 . . . . . . Hunter 1 | . . . . . . 1 . . . . . . Programmer 1 | . . . . . . . . . . 1 . . Compactor 1 | . . . . . . . . 1 . . . . Decomposer 1 | . . . . . . . . . . 1 . . Surgeon 2 | . . . . . . . . 2 . . . . Wasp 6 | . . . . . . . . 6 . . . . Thug 6 | . . . . . . . . 6 . . . . Savage 2 | . . . . . . . . 2 . . . . Martyr 2 | . . . . . . . . 2 . . . . Best Kill Streak 7 | 4 6 2 . 3 7 5 . 1 2 1 . . Combat Bots Only 5 | . 4 2 . 3 5 5 . 1 . 1 . . Max Kills in Single Turn 2 | 1 2 1 . 2 2 2 . 1 1 1 . . Gunslinging 1 | . . . . 1 . . . . . . . . Exploded 1 | . . . . . . . . 1 . . . . Melee 1 | . . . . . . . . . . 1 . . Uniques/NPCs Destroyed . | . . . . . . . . . . . . . Combat | -11 -10 -10 -10 -9 -8 -8 -7 -7 -7 -7 -7 -7 -------- Run | Scr Mat Min Exi Min Mat Sto Fac Was Fac Low Low Dat Damage Taken 6127 | . 886 254 . 65 1200 2103 . 442 873 142 18 144 Core 1379 | . 173 34 . 30 156 260 . 268 314 48 18 78 Absorbed by Shields . | . . . . . . . . . . . . . Core Remaining (%) 43 | 100 . . . 5 . 24 . . . . . . Volleys Fired 444 | 10 106 25 . 9 69 136 . 89 . . . . Largest 2 | 2 2 2 . 2 2 2 . 2 . . . . Hottest 100 | 100 100 100 . 100 53 78 . 56 . . . . Shots Fired 824 | 20 199 46 . 15 136 254 . 154 . . . . Gun 579 | 20 198 42 . 12 130 48 . 129 . . . . Cannon 203 | . . . . . . 203 . . . . . . Launcher 34 | . . . . . 6 3 . 25 . . . . Special 8 | . 1 4 . 3 . . . . . . . . Kinetic 674 | . 112 42 . 12 130 249 . 129 . . . . Thermal 111 | 17 87 4 . 3 . . . . . . . . Explosive 33 | . . . . . 6 2 . 25 . . . . Electromagnetic 6 | 3 . . . . . 3 . . . . . . Robot Hit Streak 27 | 5 12 15 . 2 13 27 . 14 . . . . Robot Miss Streak 4 | 4 4 2 . 2 3 3 . 3 . . . . Penetration Max 1 | . . . . . . 1 . . . . . . Secondary Targets 7 | . 3 . . 1 2 1 . . . . . . Max Gunslinging Chain 1 | . 1 . . 1 1 1 . . . . . . Shots Hit Robots 581 | 8 135 31 . 5 98 170 . 111 19 3 . 1 Core Hits 260 | 7 58 11 . 3 46 76 . 49 7 3 . . Critical Hits 8 | . . 1 . . 1 1 . 3 2 . . . Critical Kills 8 | . . 1 . . 1 1 . 3 2 . . . Critical Parts Destroyed . | . . . . . . . . . . . . . Melee Attacks 64 | . . . . . . 1 . 2 52 3 . 6 Impact 29 | . . . . . . 1 . 2 26 . . . Slashing . | . . . . . . . . . . . . . Piercing 35 | . . . . . . . . . 26 3 . 6 Sneak Attacks 5 | . . . . . . . . . 3 1 . 1 Combat Hostiles . | . . . . . . . . . . . . . Follow-up Attacks . | . . . . . . . . . . . . . Damage Inflicted 12398 | 146 1555 346 . 43 1827 3792 . 3643 818 154 . 74 Guns 6073 | 146 1546 346 . 40 1522 808 . 1665 . . . . Cannons 2795 | . . . . . . 2795 . . . . . . Explosions 2432 | . . . . . 305 183 . 1944 . . . . Melee 1070 | . . . . . . . . 34 808 154 . 74 Ramming 28 | . 9 . . 3 . 6 . . 10 . . . Kinetic 7941 | . 800 346 . 40 1522 3568 . 1665 . . . . Thermal 892 | 146 746 . . . . . . . . . . . Explosive 2420 | . . . . . 305 171 . 1944 . . . . Electromagnetic 47 | . . . . . . 47 . . . . . . Impact 184 | . . . . . . . . 34 150 . . . Slashing . | . . . . . . . . . . . . . Piercing 886 | . . . . . . . . . 658 154 . 74 Highest Corruption 4 | . 1 1 1 1 . 2 . . 4 4 4 4 Average Corruption 1 | . 1 1 1 1 . 1 . . 2 4 4 4 Corruption Purged . | . . . . . . . . . . . . . Effects 36 | . 4 2 1 1 . 10 . . 6 4 6 2 Message Errors 15 | . 2 2 . . . 6 . . 1 2 2 . Matter Fused 5 | . . . . . . . . . 2 1 2 . Heat Flow Errors 3 | . . . . . . . . . . . 2 1 Energy Discharges 9 | . 1 . . 1 . 4 . . 2 1 . . Data Loss (minor) 3 | . 1 . 1 . . . . . . . . 1 Targeting Errors 1 | . . . . . . . . . 1 . . . Overload Shots . | . . . . . . . . . . . . . Overflow Damage 201 | . . . . . 18 23 . . 160 . . . Projectiles 11 | . . . . . . 11 . . . . . . Explosions 30 | . . . . . 18 12 . . . . . . Melee 160 | . . . . . . . . . 160 . . . Knockbacks 24 | . . . . . . 24 . . . . . . Impact . | . . . . . . . . . . . . . Kinetic 22 | . . . . . . 22 . . . . . . Secondary 2 | . . . . . . 2 . . . . . . Self-Inflicted Damage 74 | . . . . . . . . 69 5 . . . Shots 4 | . . . . . . . . 4 . . . . Rammed 5 | . 1 . . 1 . 1 . . 2 . . . Targets Rammed 5 | . 1 . . 1 . 1 . . 2 . . . Kicked . | . . . . . . . . . . . . . Crushed . | . . . . . . . . . . . . . Highest Temperature 432 | 234 432 40 . 40 17 387 . 4 13 . 108 134 Average Temperature 85 | 97 114 11 . 17 6 82 . 3 6 . 67 88 Received Heat Transfer 2214 | . 354 96 . . 666 711 . 9 339 12 9 18 Effects 8 | 1 3 . . . . 4 . . . . . . Energy Bleed 3 | . 2 . . . . 1 . . . . . . Interference 3 | 1 . . . . . 2 . . . . . . Matter Decay 1 | . . . . . . 1 . . . . . . Damage (minor) 1 | . 1 . . . . . . . . . . . Siege Activations . | . . . . . . . . . . . . . Robots Corrupted . | . . . . . . . . . . . . . Combat Hostiles . | . . . . . . . . . . . . . Parts Fried . | . . . . . . . . . . . . . Impact Corruptions . | . . . . . . . . . . . . . Robots Melted 1 | . 1 . . . . . . . . . . . Combat Hostiles 1 | . 1 . . . . . . . . . . . Parts Melted 6 | 1 5 . . . . . . . . . . . Heat Transferred 2664 | 444 2220 . . . . . . . . . . . Parts Sabotaged . | . . . . . . . . . . . . . Parts Stolen . | . . . . . . . . . . . . . Parts Stripped . | . . . . . . . . . . . . . Power Chain Reactions . | . . . . . . . . . . . . . Missiles Intercepted . | . . . . . . . . . . . . . Alert | -11 -10 -10 -10 -9 -8 -8 -7 -7 -7 -7 -7 -7 ------- Run | Scr Mat Min Exi Min Mat Sto Fac Was Fac Low Low Dat Peak Influence 834 | 30 319 255 . 60 314 834 379 163 167 . . . Initial 379 | . 19 120 . . 23 39 379 132 . . . . Average 159 | 13 175 117 . 7 148 489 379 10 93 . . . Maximum Alert Level 3 | . 1 1 . . 1 3 1 . . . . . Low Security (%) 69 | 100 52 76 . 100 71 7 . 100 100 . . . Level 1 15 | . 47 23 . . 28 24 100 . . . . . Level 2 12 | . . . . . . 56 . . . . . . Level 3 2 | . . . . . . 12 . . . . . . Level 4 . | . . . . . . . . . . . . . Level 5 . | . . . . . . . . . . . . . High Security . | . . . . . . . . . . . . . Max Security . | . . . . . . . . . . . . . Squads Dispatched 26 | . 6 . . . 3 9 1 . 7 . . . Investigation 11 | . 4 . . . 1 3 . . 3 . . . Extermination 1 | . . . . . . . . . 1 . . . Reinforcement 11 | . 2 . . . 2 3 1 . 3 . . . Assault 3 | . . . . . . 3 . . . . . . Garrison . | . . . . . . . . . . . . . Intercept . | . . . . . . . . . . . . . Construction Impeded 1 | . . . . . . . . . 1 . . . Haulers Reinforced 1 | . . . . . . . . . 1 . . . Stealth | -11 -10 -10 -10 -9 -8 -8 -7 -7 -7 -7 -7 -7 --------- Run | Scr Mat Min Exi Min Mat Sto Fac Was Fac Low Low Dat Distress Signals 7 | . 5 . . . . 2 . . . . . . Communications Jammed . | . . . . . . . . . . . . . Distress Signals . | . . . . . . . . . . . . . Times Spotted 203 | . 40 8 . 5 23 63 1 6 48 2 3 4 Peak Tracking Total 14 | . 6 2 . 4 3 5 1 5 14 1 3 4 Tactical Retreats 26 | . 3 1 . 2 . 5 . . 15 . . . Traps | -11 -10 -10 -10 -9 -8 -8 -7 -7 -7 -7 -7 -7 ------- Run | Scr Mat Min Exi Min Mat Sto Fac Was Fac Low Low Dat Traps Triggered 10 | . 4 . . . 1 3 1 . 1 . . . Indirectly 1 | . . . . . . 1 . . . . . . Trap Hack Attempts . | . . . . . . . . . . . . . Triggered . | . . . . . . . . . . . . . Disarmed . | . . . . . . . . . . . . . Reprogrammed . | . . . . . . . . . . . . . Reused . | . . . . . . . . . . . . . Traps Extracted . | . . . . . . . . . . . . . Installed . | . . . . . . . . . . . . . Triggered 1 | . . . . 1 . . . . . . . . Machines | -11 -10 -10 -10 -9 -8 -8 -7 -7 -7 -7 -7 -7 ---------- Run | Scr Mat Min Exi Min Mat Sto Fac Was Fac Low Low Dat Machines Disabled 3 | . . . . . . 3 . . . . . . Max in Single Turn 1 | . . . . . . 1 . . . . . . Garrison Access 2 | . . . . . . . . . 2 . . . Machines Sabotaged . | . . . . . . . . . . . . . Garrisons Compromised . | . . . . . . . . . . . . . Overloaded Fab Kills . | . . . . . . . . . . . . . Fab Network Shutdowns . | . . . . . . . . . . . . . Hacking | -11 -10 -10 -10 -9 -8 -8 -7 -7 -7 -7 -7 -7 --------- Run | Scr Mat Min Exi Min Mat Sto Fac Was Fac Low Low Dat Machines Accessed 41 | . 8 . 1 . 1 13 . . 14 . . 4 Terminals 26 | . 6 . . . . 10 . . 10 . . . Fabricators 1 | . . . . . . . . . 1 . . . Repair Stations 4 | . . . . . 1 2 . . 1 . . . Recycling Units 3 | . 2 . . . . 1 . . . . . . Scanalyzers . | . . . . . . . . . . . . . Garrison Access 2 | . . . . . . . . . 2 . . . Total Hacks 123 | . 18 . 1 . 2 41 . . 34 . . 27 Successful 78 | . 9 . 1 . 1 22 . . 18 . . 27 Failed 45 | . 9 . . . 1 19 . . 16 . . . Catastrophic 9 | . 1 . . . . 5 . . 3 . . . Database Lockouts . | . . . . . . . . . . . . . Manual 65 | . 15 . . . . 27 . . 23 . . . Terminals 71 | . 15 . . . . 30 . . 26 . . . Fabricators 2 | . . . . . . . . . 2 . . . Repair Stations 12 | . . . . . 2 7 . . 3 . . . Recycling Units 7 | . 3 . . . . 4 . . . . . . Scanalyzers . | . . . . . . . . . . . . . Garrison Access 3 | . . . . . . . . . 3 . . . Terminal Hacks 43 | . 2 . 1 . . 9 . . 4 . . 27 Record 13 | . . . 1 . . . . . 1 . . 11 Part Schematic 8 | . . . . . . . . . 2 . . 6 Robot Schematic 7 | . . . . . . . . . . . . 7 Robot Analysis 2 | . . . . . . 2 . . . . . . Prototype ID Bank 3 | . . . . . . . . . . . . 3 Open Door 2 | . . . . . . 2 . . . . . . Branch Access Points 1 | . . . . . . . . . 1 . . . Unreport Threat 3 | . . . . . . 3 . . . . . . Locate Traps 3 | . 2 . . . . 1 . . . . . . Zone Layout 1 | . . . . . . 1 . . . . . . Fabricator Hacks 2 | . . . . . . . . . 2 . . . Load Schematic 1 | . . . . . . . . . 1 . . . Build 1 | . . . . . . . . . 1 . . . Repair Station Hacks 9 | . . . . . 1 6 . . 2 . . . Scan Component 5 | . . . . . 1 3 . . 1 . . . Repair 4 | . . . . . . 3 . . 1 . . . Recycling Unit Hacks 2 | . 1 . . . . 1 . . . . . . Retrieve Components 2 | . 1 . . . . 1 . . . . . . Scanalyzer . | . . . . . . . . . . . . . Garrison Access Hacks 2 | . . . . . . . . . 2 . . . Seal Access 2 | . . . . . . . . . 2 . . . Unauthorized Hacks 20 | . 6 . . . . 6 . . 8 . . . Terminals 17 | . 4 . . . . 5 . . 8 . . . Track 2 | . . . . . . 1 . . 1 . . . Assimilate 4 | . . . . . . 1 . . 3 . . . Botnet 8 | . 3 . . . . 2 . . 3 . . . Operators 3 | . 1 . . . . 1 . . 1 . . . Fabricators . | . . . . . . . . . . . . . Repair Stations . | . . . . . . . . . . . . . Recycling Units 3 | . 2 . . . . 1 . . . . . . Tunnel 3 | . 2 . . . . 1 . . . . . . Scanalyzers . | . . . . . . . . . . . . . Garrison Access . | . . . . . . . . . . . . . Data Cores Recovered . | . . . . . . . . . . . . . Used . | . . . . . . . . . . . . . Hacking Detections 29 | . 6 . . . 1 10 . . 12 . . . Full Trace Events 6 | . 1 . . . . 3 . . 2 . . . Feedback Events 2 | . 1 . . . . 1 . . . . . . Corruption 2 | . 1 . . . . 1 . . . . . . Feedback Blocked . | . . . . . . . . . . . . . Robot Schematics Acquired 7 | . . . . . . . . . . . . 7 Robots Built . | . . . . . . . . . . . . . Matter . | . . . . . . . . . . . . . Time . | . . . . . . . . . . . . . Total Robot Build Rating . | . . . . . . . . . . . . . Part Schematics Acquired 8 | . . . . . . . . . 2 . . 6 Parts Built 1 | . . . . . . . . . 1 . . . Matter 146 | . . . . . . . . . 146 . . . Time 36 | . . . . . . . . . 36 . . . Total Part Build Rating 3 | . . . . . . . . . 3 . . . Parts Repaired 4 | . . . . . . 3 . . 1 . . . Time 158 | . . . . . . 96 . . 62 . . . Parts Recycled . | . . . . . . . . . . . . . Recycled Matter . | . . . . . . . . . . . . . Retrieved Matter . | . . . . . . . . . . . . . Retrieved Components 19 | . 10 . . . . 9 . . . . . . Parts Scanalyzed . | . . . . . . . . . . . . . Part Schematics Acquired . | . . . . . . . . . . . . . Parts Damaged . | . . . . . . . . . . . . . Bothacking | -11 -10 -10 -10 -9 -8 -8 -7 -7 -7 -7 -7 -7 ------------ Run | Scr Mat Min Exi Min Mat Sto Fac Was Fac Low Low Dat Used RIF Installer . | . . . . . . . . . . . . . Robots Hacked . | . . . . . . . . . . . . . Non-combat . | . . . . . . . . . . . . . Combat . | . . . . . . . . . . . . . Robot Hacks Applied . | . . . . . . . . . . . . . Relay Couplers Released . | . . . . . . . . . . . . . Robots Rewired . | . . . . . . . . . . . . . Allies Hacked . | . . . . . . . . . . . . . Hacks Repelled . | . . . . . . . . . . . . . Allies | -11 -10 -10 -10 -9 -8 -8 -7 -7 -7 -7 -7 -7 -------- Run | Scr Mat Min Exi Min Mat Sto Fac Was Fac Low Low Dat Total Allies 33 | . . . . . . 12 . 18 3 . . . Largest Group 18 | . . . . . . 10 . 18 2 . . . Highest-Rated Group 446 | . . . . . . 173 . 446 36 . . . Highest-Rated Ally 35 | . . . . . . 31 . 35 26 . . . Total Orders 2 | . . . . . . 2 . . . . . . EXPLORE 2 | . . . . . . 2 . . . . . . Ally Attacks 144 | . . . . . . 88 . 56 . . . . Total Damage 3039 | . . . . . . 1283 . 1756 . . . . Kills 23 | . . . . . . 18 . 5 . . . . Allies Corrupted . | . . . . . . . . . . . . . Allies Melted . | . . . . . . . . . . . . . Intel | -11 -10 -10 -10 -9 -8 -8 -7 -7 -7 -7 -7 -7 ------- Run | Scr Mat Min Exi Min Mat Sto Fac Was Fac Low Low Dat Robot Analysis Total 117 | . . . . . . 2 . . . . . 115 Derelict Logs Recovered 4 | . . . . 1 . . . . . 2 1 . Drone Launches 2 | . . . . . . 2 . . . . . . Drone Recoveries . | . . . . . . . . . . . . . Exploration | -11 -10 -10 -10 -9 -8 -8 -7 -7 -7 -7 -7 -7 ------------- Run | Scr Mat Min Exi Min Mat Sto Fac Was Fac Low Low Dat Turns Passed 14140 | 70 1459 866 618 656 1145 2783 115 5178 624 326 198 102 Spaces Moved 5809 | 10 743 452 314 300 424 985 58 725 1204 303 189 102 Core 472 | . 4 . . . 1 . . 463 2 . . 2 Treads 2620 | . 210 391 314 300 400 909 58 38 . . . . Legs 28 | 10 18 . . . . . . . . . . . Wheels 671 | . 511 61 . . 23 76 . . . . . . Hover 2 | . . . . . . . . . . 2 . . Flight 2016 | . . . . . . . . 224 1202 301 189 100 Fastest Speed 28 | 120 120 130 160 200 120 160 200 28 28 103 105 35 Average Speed 204 | 120 143 173 189 200 208 204 200 667 28 103 105 82 Slowest Speed 1900 | 120 200 180 200 200 1450 240 200 1900 150 180 105 105 Overloaded Moves . | . . . . . . . . . . . . . Propulsion Burnouts . | . . . . . . . . . . . . . Robots Hopped 12 | . . . . . . . . . 12 . . . Cave-ins Triggered 1 | . . . . . . . . . 1 . . . Exploration Rate (%) 55 | 3 98 79 62 56 25 95 3 96 43 50 36 76 Regions Visited 12 Branch Regions 7 Pre-discovered Areas 25 | . 2 . 1 1 . 1 . . . . . 20 Known Exits Taken 5 | . . . . . 1 1 . . 1 1 1 . Unknown Exits Taken 5 | 1 1 1 1 1 . . . . . . . . Scrap Searched 3 | . . 1 . 2 . . . . . . . . Spaces Dug 40 | . 1 3 . 2 . 1 . . 32 . . 1 Terrain Destroyed 240 | . 1 4 . 2 60 29 . 111 32 . . 1 Melee 34 | . . . . . . 1 . . 32 . . 1 Projectile 13 | . 1 4 . 2 . 6 . . . . . . AOE 193 | . . . . . 60 22 . 111 . . . . Terrain Rammed . | . . . . . . . . . . . . . Walls Destroyed . | . . . . . . . . . . . . . Machines Disabled . | . . . . . . . . . . . . . Actions | -11 -10 -10 -10 -9 -8 -8 -7 -7 -7 -7 -7 -7 --------- Run | Scr Mat Min Exi Min Mat Sto Fac Was Fac Low Low Dat Total 7195 | 47 953 482 341 333 570 1508 60 917 1376 309 188 111 Wait 493 | 27 37 1 . 20 14 264 . 38 91 1 . . Move 5777 | 9 742 451 313 299 423 984 58 724 1182 302 188 102 Hop 10 | . . . . . . . . . 10 . . . Pick Up 124 | . 26 1 20 1 25 33 1 11 5 . . 1 Fast Attach 71 | . 7 1 1 . 9 15 . 23 13 2 . . Attach 31 | . 9 . . . 11 5 . 6 . . . . Detach 15 | . 3 1 . . 2 3 . 4 2 . . . Swap 54 | 1 8 1 2 3 2 23 . 7 7 . . . Drop 108 | . 14 1 5 . 15 43 1 13 13 1 . 2 Fire 444 | 10 106 25 . 9 69 136 . 89 . . . . Melee 64 | . . . . . . 1 . 2 52 3 . 6 Ram 1 | . . . . . . . . . 1 . . . Kick . | . . . . . . . . . . . . . Crush 3 | . 1 . . 1 . 1 . . . . . . Escape Stasis . | . . . . . . . . . . . . . Rewire . | . . . . . . . . . . . . . Trap . | . . . . . . . . . . . . . Miscellaneous . | . . . . . . . . . . . . . Route ------- -11/Scrapyard -10/Materials (discovered 5 exits: [*Mat x3] / [*Min x2]) -10/Mines (discovered 2 exits: [*Mat] / *Exi) -10/Exiles -9/Mines -8/Materials -8/Storage -7/Factory -7/Waste -7/Factory (discovered 4 exits: [*Fac x2] / *Low x2) -7/Lower Caves -7/Lower Caves -7/Data Miner (discovered 1 exit: [*Pro]) History --------- Turn | Location | Event 15 | -11/Scrapyard | Discovered new exit (range 1) 71 | -11/Scrapyard | Entered Materials 71 | -10/Materials | Discovered new exit (range 14) 307 | -10/Materials | Build established: Mutant 862 | -10/Materials | Discovered new exit (range 16) 1092 | -10/Materials | Discovered new exit (range 16) 1213 | -10/Materials | Discovered new exit (range 15) 1383 | -10/Materials | Discovered new exit (range 9) 1418 | -10/Materials | Core integrity fell below 50% 1530 | -10/Materials | Entered Mines 1922 | -10/Mines | Core integrity fell below 20% 2161 | -10/Mines | Received a Rocket Launcher from a helpful Derelict 2205 | -10/Mines | Discovered new exit (range 9) 2389 | -10/Mines | Deemed a non-threat by the Exiles lab entrance 2389 | -10/Mines | Discovered new exit (range 5) 2396 | -10/Mines | Entered Exiles 2441 | -10/Exiles | Met 8R-AWN 2467 | -10/Exiles | Met EX-HEX 2603 | -10/Exiles | Met EX-DEC 2634 | -10/Exiles | Learned location of Zion (-6) 2852 | -10/Exiles | Build established: Hauler-Mutant 2870 | -10/Exiles | Met EX-BIN 2990 | -10/Exiles | Discovered new exit (range 14) 3014 | -10/Exiles | Entered Mines 3053 | -9/Mines | Assembled infested the area 3058 | -9/Mines | Assisted by a Guerilla fighting off Assembled 3366 | -9/Mines | Learned location of Storage (-8) 3373 | -9/Mines | Learned Materials stockpile data 3650 | -9/Mines | Discovered new exit (range 12) 3670 | -9/Mines | Entered Materials 3670 | -8/Materials | Evolved 4 slots: Utility x4 3830 | -8/Materials | Lost 3 parts (1p1n1w) 4293 | -8/Materials | Discovered new exit (range 5) 4302 | -8/Materials | Identified exit to Storage 4815 | -8/Materials | Entered Storage 4946 | -8/Storage | Build established: Mutant 5339 | -8/Storage | Build established: Hauler-Mutant 6015 | -8/Storage | First assault squad dispatched 6137 | -8/Storage | Repaired Imp. Light Cannon 6170 | -8/Storage | Repaired Imp. Light Cannon 6178 | -8/Storage | Core integrity fell below 50% 6540 | -8/Storage | Assisted by bots powering up and referring to "LRC-V3" 7269 | -8/Storage | Met a pair of Derelict thieves 7435 | -8/Storage | Discovered new exit (range 16) 7585 | -8/Storage | Repaired Rocket Launcher 7596 | -8/Storage | Identified exit to Factory 7598 | -8/Storage | Entered Factory 7598 | -7/Factory | Evolved 2 slots: Propulsion x2 7713 | -7/Factory | Sucked down chute 7713 | -7/Factory | Entered Waste 7750 | -7/Waste | Spotted C-40 Crusher 7796 | -7/Waste | Crushed by Compactor (1 part destroyed, 1 dropped) 7799 | -7/Waste | Crushed by Compactor (1 part destroyed, 2 dropped) 7802 | -7/Waste | Crushed by Compactor (1 part destroyed, 1 dropped) 7805 | -7/Waste | Crushed by Compactor (1 part destroyed, 1 dropped) 7808 | -7/Waste | Crushed by Compactor (1 part destroyed, 1 dropped) 7811 | -7/Waste | Crushed by Compactor (1 part destroyed, 2 dropped) 7814 | -7/Waste | Crushed by Compactor (1 part destroyed) 7820 | -7/Waste | Spotted C-40 Crusher 7835 | -7/Waste | Destroyed C-40 Crusher 7845 | -7/Waste | Lost 7 parts (1n4u2w) 7898 | -7/Waste | Spotted C-40 Crusher 7926 | -7/Waste | Spotted C-40 Crusher 7928 | -7/Waste | Spotted C-40 Crusher 7997 | -7/Waste | Spotted C-40 Crusher 8024 | -7/Waste | Warlord forces began an assault 8026 | -7/Waste | Allies destroyed C-40 Crusher 8028 | -7/Waste | Allies destroyed C-40 Crusher 8030 | -7/Waste | Allies destroyed C-40 Crusher 8034 | -7/Waste | Allies destroyed C-40 Crusher 8038 | -7/Waste | Allies destroyed C-40 Crusher 8076 | -7/Waste | Build established: Mutant 8433 | -7/Waste | Build established: Hauler-Mutant 9838 | -7/Waste | Discovered new exit (range 16) 12891 | -7/Waste | Entered Factory 13060 | -7/Factory | Build established: Scavenger-Sprinter 13072 | -7/Factory | Fabricated System Shield? 13131 | -7/Factory | Crushed by falling debris 13131 | -7/Factory | Core integrity fell below 50% 13266 | -7/Factory | Repaired Antimatter Reactor 13393 | -7/Factory | Identified exit to Lower Caves 13399 | -7/Factory | Discovered new exit (range 17) 13511 | -7/Factory | Discovered new exit (range 16) 13515 | -7/Factory | Entered Lower Caves 13516 | -7/Lower Caves | Core integrity fell below 20% 13765 | -7/Lower Caves | Spotted B-75 Beast 13777 | -7/Lower Caves | Identified exit to Lower Caves 13798 | -7/Lower Caves | Lost 3 parts (1p2n) 13820 | -7/Lower Caves | Build established: Hacker-Mutant 13828 | -7/Lower Caves | Learned 4 Factory zone layouts 13841 | -7/Lower Caves | Entered another Lower Caves area 13873 | -7/Lower Caves | Identified exit to Data Miner 14039 | -7/Lower Caves | Attracted the attention of an 0b10 checkpoint 14039 | -7/Lower Caves | Entered Data Miner 14039 | -7/Data Miner | Discovered new exit (range 6) 14059 | -7/Data Miner | Met Data Miner 14079 | -7/Data Miner | Learned location of Section 7 (-2) 14079 | -7/Data Miner | Acquired the access code to Warlord's prototype stash 14097 | -7/Data Miner | Received God Mode back door access code from Data Miner 14120 | -7/Data Miner | Interfaced with the Data Conduit 14141 | -7/Data Miner | Destroyed by Enhanced Grunt with Neutron Cannon Last Messages --------------- God Mode is nearly complete and we think you might be able to put it to better use than Warlord, so if you see an opportunity, hack it and enter \\NRRR to gain control via the back door I've installed. Now off with you. 14112_ Dropped Sml. Storage Unit. 14118_ Sneak attack on Data Miner. 14118_ Data Miner disappears through a trap door. 14120_ Interfacing with system... Downloaded 115 analysis records. Downloaded 709 prototype IDs. Downloaded central machine database. Downloaded 19 destinations. Downloaded encryption format records. Connection remotely terminated. [Achievement: Unlimited Data] 14122_ Dropped Shock Bomb Launcher. 14122_ Acquired Sml. Storage Unit. 14138_ Utility Shielding destroyed. 14139_ Spear destroyed. 14139_ Imp. Flight Unit destroyed. Map ----- +----------------------------------------------------+ | | | | | | | | | | | | | | | | | | | | | | | | | | | | | | | | | | | ?????????????????????????????????????????????? | | ?????????????????????????????????????????????? | | ?????????????????????????????????????????????? | | ?????????????????????????????????????????????? | | ?????????????????????????????????????####????? | | ??????################?????????????### #????? | | ?????"""""""""""" g ;#####????????## #????? | | ????""""""""" "" " """# # ###### < ##????? | | ????""""""""" gg @g ###### | | ????"""""" # | | ???""""""" [ # | | ???"""""" ][ # | | ???""""""" ## | | ????"""""" """"""""""""""""#####? | | ????""""""" """"###############????? | | ????""""""" """""###??????????????????? | | ?????"""""""" "#####????????????????????? | | ??????######"## "#????????????????????????? | | ???????????#"### "#????????????????????????? | | ???????????#"### "#????????????????????????? | | ???????????#"## "#????????????????????????? | | ?????????????## "#????????????????????????? | | ?????????????# "#????????????????????????? | | ?????????????### "#????????????????????????? | | ???????????????# "##???????????????????????? | | ??????????????## ""#???????????????????????? | | ???????????#?## ""#???????????????????????? | | ??????????##"#"X ""#???????????????????????? | | ?????????"""""" "####????????????????????? | | ?????????#""""" X"""""????????????????????? | | ?????????###"#"X "##"#????????????????????? | | ???????????#?## X""""#????????????????????? | | ??????????????## "##"#????????????????????? | +----------------------------------------------------+ Best States ------------- Heat Dissipation 62 Energy Generation 21 Energy Capacity 325 Matter Stores 300 Matter Capacity 300 Sight Range 18 Robot Scan Range 20 Terrain Scan Density 10 Armor Coverage 225 Resistance: KI 20 Propulsion Shielding 66 Utility Shielding 33 Evasion (%) 64 Armor Integrity Analysis 33 Recoil Reduction 2 Offensive Hacking 20 Defensive Hacking 10 Item Schematics ----------------- System Shield | -7/Factory | Hacked Hacking Suite | -7/Factory | Hacked Combat Drone Bay | -7/Data Miner | Free Lgt. Regenerative Plating | -7/Data Miner | Free Exp. Flexi-carbon Leg | -7/Data Miner | Free Cmb. Gravmag System | -7/Data Miner | Free Exp. Cesium-ion Thruster | -7/Data Miner | Free Exp. Sensor Array | -7/Data Miner | Free Robot Schematics ------------------ S-27 Virus | -7/Data Miner | Free G-50 Soldier | -7/Data Miner | Free L-41 Fighter | -7/Data Miner | Free H-66 Slayer | -7/Data Miner | Free X-72 Disruptor | -7/Data Miner | Free P-70 Sage | -7/Data Miner | Free I-36 Angel | -7/Data Miner | Free Fabricated ------------ System Shield | x1 | -7/Factory Alien Tech Used ----------------- None Achievements -------------- Unlimited Data Challenges ------------ None Game ------ Seed RagnarokDecoyGravjet Manual? 0 Play Time 01:30:12 Cumulative 66.4 hours Start 2020.11.03 @ 20:23:08 End 2020.11.03 @ 21:51:09 Sessions 1 Manual Loads 0 Difficulty Rogue Special Mode None Game No. 59 Rogue 59 Adventurer 0 Explorer 0 Win Type - Total 0 Types 0/0/0/0/0/0/0/0/0 Lore% 45 Gallery% 49 Achievement% 50 Wizard Run 0 Options --------- ASCII 0 Keyboard 1 Movement Numpad Keybinds 0 Fullscreen 1 Font 12/Terminus Map View 83x54 Tactical HUD 1 Map Filters NONE Filters NONE Steam 1 RUN: 5a1b47c0-ec4d-4aa6-aaf0-5e1fbb73a33b